fUSD/lending_fUSD_20240713
["ID","MTS","AMOUNT","RATE_DAILY","PERIOD"]
[331909370,1720829123615,227.32181018,0.00011199,2]
[331909375,1720829159595,331.63513846,0.00011199,2]
[331909394,1720829308501,393.45339341,0.00011199,2]
[331909396,1720829319365,879.04,0.00018849,30]
[331909430,1720829431978,-250.0,0.00012739,2]
[331909431,1720829431988,-482.0,0.00012739,2]
[331909432,1720829431997,-221.11,0.00012739,2]
[331909433,1720829432007,-250.0,0.0001275,2]
[331909434,1720829432016,-1000.0,0.00012757,2]
[331909435,1720829432027,-174.72,0.0001277,2]
[331909436,1720829432036,-459.5,0.00013107,2]
[331909437,1720829432046,-227.32181018,0.00013128,2]
[331909438,1720829432055,-79.42073076,0.00013256,2]
[331909439,1720829432068,-138.57926924,0.00013256,2]
[331909440,1720829432077,-480.16,0.00013562,2]
[331909441,1720829432087,-300.0,0.00013597,2]
[331909442,1720829432096,-932.12,0.00013598,2]
[331909443,1720829432105,-746.83513076,0.00013598,2]
[331909444,1720829432117,-7447.32319545,0.00013598,2]
[331909445,1720829432128,-360.246502,0.00013598,2]
[331909446,1720829432144,-461.75537179,0.00013598,2]
[331909447,1720829432153,-98.00224999,0.00013598,2]
[331909448,1720829432164,-3929.44425001,0.00013598,2]
[331909449,1720829432174,-150.0,0.00013661,2]
[331909450,1720829432188,-4287.7009,0.00013662,2]
[331909451,1720829432197,-283779.3372,0.00013662,2]
[331909452,1720829432206,-499.99,0.00013662,2]
[331909453,1720829432215,-620.10900742,0.00013662,2]
[331909454,1720829432224,-234.16996596,0.00013662,2]
[331909455,1720829432233,-500.0,0.00013698,2]
[331909456,1720829432242,-288.09901159,0.00013698,2]
[331909457,1720829432251,-500.0,0.00013698,2]
[331909458,1720829432260,-3115.98,0.00013698,2]
[331909459,1720829432269,-500.0,0.00013698,2]
[331909460,1720829432279,-500.0,0.00013698,2]
[331909461,1720829432288,-500.0,0.00013698,2]
[331909462,1720829432297,-2042.38,0.00013698,2]
[331909463,1720829432306,-251.5373081,0.00013698,2]
[331909464,1720829432315,-500.0,0.00013698,2]
[331909465,1720829432326,-250.0,0.00013699,2]
[331909466,1720829432336,-475.85,0.00013699,2]
[331909467,1720829432348,-1000.0,0.00013708,2]
[331909468,1720829432359,-1129.98623573,0.0001372,2]
[331909469,1720829432371,-300.0,0.00013728,2]
[331909470,1720829432381,-300.0,0.00013744,2]
[331909471,1720829432391,-1500.0,0.00013749,2]
[331909472,1720829432402,-500.0,0.00013753,2]
[331909473,1720829432412,-500.0,0.00013753,2]
[331909474,1720829432422,-3115.98,0.00013753,2]
[331909475,1720829432433,-500.0,0.00013753,2]
[331909476,1720829432442,-500.0,0.00013753,2]
[331909477,1720829432451,-2042.38,0.00013753,2]
[331909479,1720829432461,-500.0,0.00013753,2]
[331909480,1720829432471,-300.0,0.00013754,2]
[331909481,1720829432481,-1500.0,0.00013759,2]
[331909482,1720829432491,-500.0,0.00013761,2]
[331909483,1720829432501,-164234.5247,0.00013762,2]
[331909484,1720829432511,-300.0,0.00013762,2]
[331909485,1720829432520,-1500.0,0.00013764,2]
[331909486,1720829432530,-1500.0,0.00013765,2]
[331909487,1720829432540,-1500.0,0.00013769,2]
[331909488,1720829432549,-300.0,0.00013779,2]
[331909489,1720829432560,-300.0,0.0001378,2]
[331909490,1720829432570,-300.0,0.00013783,2]
[331909491,1720829432581,-1500.0,0.00013785,2]
[331909492,1720829432592,-1500.0,0.00013788,2]
[331909493,1720829432602,-150.0,0.000138,2]
[331909494,1720829432612,-150.0,0.000138,2]
[331909495,1720829432624,-354.33,0.000138,2]
[331909496,1720829432633,-15892.2232637,0.000138,3]
[331909497,1720829432643,-300.0,0.00013803,2]
[331909498,1720829432652,-500.0,0.00013808,2]
[331909499,1720829432662,-500.0,0.00013808,2]
[331909500,1720829432672,-3115.98,0.00013808,2]
[331909501,1720829432682,-500.0,0.00013808,2]
[331909502,1720829432692,-500.0,0.00013808,2]
[331909503,1720829432701,-2042.38,0.00013808,2]
[331909504,1720829432710,-500.0,0.00013808,2]
[331909505,1720829432719,-1500.0,0.00013811,2]
[331909506,1720829432728,-1500.0,0.00013812,2]
[331909507,1720829432737,-300.0,0.00013819,2]
[331909508,1720829432751,-1500.0,0.00013821,2]
[331909509,1720829432759,-1500.0,0.0001383,2]
[331909510,1720829432769,-300.0,0.0001383,2]
[331909511,1720829432778,-1500.0,0.00013837,2]
[331909512,1720829432787,-1500.0,0.00013838,2]
[331909513,1720829432796,-1500.0,0.00013839,2]
[331909514,1720829432806,-300.0,0.00013854,2]
[331909515,1720829432815,-3000.0,0.0001386,2]
[331909516,1720829432824,-300.0,0.00013861,2]
[331909517,1720829432832,-300.0,0.00013863,2]
[331909518,1720829432841,-500.0,0.00013863,2]
[331909519,1720829432850,-464.359999,0.00013863,2]
[331909520,1720829432860,-3115.98,0.00013863,2]
[331909521,1720829432869,-500.0,0.00013863,2]
[331909522,1720829432878,-500.0,0.00013863,2]
[331909523,1720829432887,-2042.38,0.00013863,2]
[331909524,1720829432896,-500.0,0.00013863,2]
[331909525,1720829432905,-1500.0,0.00013866,2]
[331909526,1720829432915,-1500.0,0.00013869,2]
[331909527,1720829432924,-300.0,0.00013881,2]
[331909528,1720829432933,-1500.0,0.00013884,2]
[331909529,1720829432942,-1500.0,0.00013885,2]
[331909530,1720829432953,-1500.0,0.00013886,2]
[331909531,1720829432963,-1500.0,0.00013887,2]
[331909532,1720829432973,-1500.0,0.0001389,2]
[331909533,1720829432983,-1500.0,0.00013891,2]
[331909534,1720829432992,-1500.0,0.00013891,2]
[331909535,1720829433003,-300.0,0.00013893,2]
[331909536,1720829433012,-300.0,0.00013896,2]
[331909537,1720829433022,-1500.0,0.00013896,2]
[331909538,1720829433032,-500.0,0.00013898,2]
[331909539,1720829433041,-500.0,0.00013898,2]
[331909540,1720829433050,-500.0,0.00013898,2]
[331909541,1720829433060,-150.0,0.00013898,2]
[331909542,1720829433069,-181.046075,0.00013898,2]
[331909543,1720829433079,-180.403031,0.00013898,2]
[331909544,1720829433088,-497.51059573,0.00013898,2]
[331909545,1720829433097,-500.0,0.00013898,2]
[331909546,1720829433107,-597.58,0.00013898,2]
[331909547,1720829433117,-500.0,0.00013898,2]
[331909548,1720829433126,-500.0,0.00013898,2]
[331909549,1720829433135,-402.1362709,0.00013898,2]
[331909550,1720829433145,-500.0,0.00013898,2]
[331909551,1720829433154,-500.0,0.00013898,2]
[331909552,1720829433164,-500.0,0.00013898,2]
[331909553,1720829433172,-500.0,0.00013898,2]
[331909554,1720829433183,-565.56,0.00013898,2]
[331909555,1720829433192,-500.0,0.00013898,2]
[331909556,1720829433202,-500.0,0.00013898,2]
[331909557,1720829433211,-500.0,0.00013898,2]
[331909558,1720829433220,-500.0,0.00013898,2]
[331909559,1720829433230,-500.0,0.00013898,2]
[331909560,1720829433239,-500.0,0.00013898,2]
[331909561,1720829433248,-500.0,0.00013898,2]
[331909562,1720829433258,-500.0,0.00013898,2]
[331909563,1720829433267,-500.0,0.00013898,2]
[331909564,1720829433276,-500.0,0.00013898,2]
[331909565,1720829433285,-500.0,0.00013898,2]
[331909566,1720829433294,-500.0,0.00013898,2]
[331909567,1720829433303,-500.0,0.00013898,2]
[331909568,1720829433312,-500.0,0.00013898,2]
[331909569,1720829433321,-500.0,0.00013898,2]
[331909570,1720829433331,-500.0,0.00013898,2]
[331909571,1720829433340,-500.0,0.00013898,2]
[331909572,1720829433349,-500.0,0.00013898,2]
[331909573,1720829433358,-237.07,0.00013899,2]
[331909574,1720829433367,-562.82,0.00013899,2]
[331909575,1720829433376,-500.0,0.00013899,2]
[331909576,1720829433385,-500.0,0.00013899,2]
[331909577,1720829433394,-500.0,0.00013899,2]
[331909578,1720829433405,-2778.0244,0.000139,2]
[331909579,1720829433415,-171.61014676,0.000139,2]
[331909580,1720829433424,-169.99561806,0.000139,2]
[331909581,1720829433434,-174.58989141,0.000139,2]
[331909582,1720829433443,-428.88378944,0.000139,2]
[331909583,1720829433452,-937.75520323,0.000139,2]
[331909584,1720829433462,-1500.0,0.00013901,2]
[331909585,1720829433471,-1500.0,0.00013902,2]
[331909586,1720829433480,-385.10220627,0.00013908,2]
[331909587,1720829433489,-1500.0,0.00013911,2]
[331909588,1720829433498,-238.32535724,0.00013915,2]
[331909589,1720829433507,-500.0,0.00013915,2]
[331909590,1720829433516,-500.0,0.00013915,2]
[331909591,1720829433525,-293.02661051,0.00013915,2]
[331909592,1720829433534,-500.0,0.00013915,2]
[331909593,1720829433543,-500.0,0.00013915,2]
[331909594,1720829433552,-500.0,0.00013915,2]
[331909595,1720829433561,-1500.0,0.00013915,2]
[331909596,1720829433570,-1500.0,0.00013916,2]
[331909597,1720829433579,-500.0,0.00013917,2]
[331909598,1720829433588,-3115.98,0.00013917,2]
[331909599,1720829433597,-500.0,0.00013917,2]
[331909600,1720829433606,-500.0,0.00013917,2]
[331909601,1720829433615,-2042.38,0.00013917,2]
[331909602,1720829433625,-500.0,0.00013917,2]
[331909603,1720829433634,-300.0,0.00013918,2]
[331909604,1720829433643,-1500.0,0.00013919,2]
[331909605,1720829433653,-300.0,0.00013923,2]
[331909606,1720829433662,-1500.0,0.00013926,2]
[331909607,1720829433672,-8221.56864123,0.00013943,3]
[331909608,1720829433682,-300.0,0.00013951,2]
[331909609,1720829433692,-1500.0,0.00013952,2]
[331909610,1720829433701,-1500.0,0.00013953,2]
[331909611,1720829433713,-500.0,0.00013953,2]
[331909612,1720829433722,-500.0,0.00013953,2]
[331909613,1720829433731,-150.0,0.00013953,2]
[331909614,1720829433741,-260.84637875,0.00013953,2]
[331909615,1720829433753,-597.58,0.00013953,2]
[331909616,1720829433762,-218.65877667,0.00013953,2]
[331909617,1720829433771,-500.0,0.00013953,2]
[331909618,1720829433780,-335.13412603,0.00013953,2]
[331909619,1720829433789,-500.0,0.00013953,2]
[331909620,1720829433798,-152.25415196,0.00013953,2]
[331909621,1720829433807,-500.0,0.00013953,2]
[331909622,1720829433816,-254.28140998,0.00013953,2]
[331909623,1720829433825,-500.0,0.00013953,2]
[331909624,1720829433835,-500.0,0.00013953,2]
[331909625,1720829433844,-500.0,0.00013953,2]
[331909626,1720829433854,-500.0,0.00013953,2]
[331909627,1720829433863,-500.0,0.00013953,2]
[331909628,1720829433872,-500.0,0.00013953,2]
[331909629,1720829433881,-500.0,0.00013953,2]
[331909630,1720829433891,-500.0,0.00013953,2]
[331909631,1720829433900,-500.0,0.00013953,2]
[331909632,1720829433909,-500.0,0.00013953,2]
[331909633,1720829433919,-452.80988804,0.00013953,2]
[331909634,1720829433929,-500.0,0.00013953,2]
[331909635,1720829433939,-500.0,0.00013953,2]
[331909636,1720829433947,-500.0,0.00013953,2]
[331909637,1720829433957,-500.0,0.00013953,2]
[331909638,1720829433965,-177.02,0.00013953,2]
[331909639,1720829433975,-500.0,0.00013953,2]
[331909640,1720829433984,-500.0,0.00013954,2]
[331909641,1720829433993,-500.0,0.00013954,2]
[331909642,1720829434002,-1500.0,0.00013957,2]
[331909643,1720829434011,-1500.0,0.00013957,2]
[331909644,1720829434021,-8221.56864123,0.00013962,3]
[331909645,1720829434029,-1500.0,0.00013964,2]
[331909646,1720829434039,-1500.0,0.00013967,2]
[331909647,1720829434048,-500.0,0.0001397,2]
[331909648,1720829434057,-500.0,0.0001397,2]
[331909649,1720829434066,-500.0,0.0001397,2]
[331909650,1720829434076,-500.0,0.0001397,2]
[331909651,1720829434085,-500.0,0.0001397,2]
[331909652,1720829434095,-605.40009432,0.00013972,2]
[331909653,1720829434104,-3115.98,0.00013972,2]
[331909654,1720829434113,-500.0,0.00013972,2]
[331909655,1720829434122,-500.0,0.00013972,2]
[331909656,1720829434131,-2042.38,0.00013972,2]
[331909657,1720829434140,-500.0,0.00013972,2]
[331909658,1720829434149,-1500.0,0.00013973,2]
[331909659,1720829434158,-1500.0,0.00013974,2]
[331909660,1720829434168,-300.0,0.00013975,2]
[331909661,1720829434178,-1584.39950707,0.0001398,2]
[331909662,1720829434188,-8221.56864123,0.00013989,3]
[331909663,1720829434197,-1500.0,0.00013989,2]
[331909664,1720829434206,-1500.0,0.00013989,2]
[331909665,1720829434214,-344.12345252,0.00013989,2]
[331909666,1720829434223,-75499.1145647,0.0001399,3]
[331909667,1720829434243,-208.93167909,0.00013989,2]
[331909668,1720829434252,-25655.3724541,0.0001399,3]
[331909669,1720829434263,-1014.49527773,0.0001399,3]
[331909670,1720829434274,-862.021,0.0001399,3]
[331909671,1720829434285,-118331.67536849,0.0001399,3]
[331909672,1720829434296,-376.15960209,0.0001399,3]
[331909673,1720829434307,-345.5,0.0001399,3]
[331909681,1720829438034,-8119.58368689,0.0001399,3]
[331909682,1720829438044,-300.0,0.00013991,2]
[331909683,1720829438054,-500.0,0.00013999,2]
[331909684,1720829438063,-241.57623348,0.00013999,2]
[331909685,1720829438072,-210.10223507,0.00013999,2]
[331909686,1720829438082,-5931.14804107,0.00013999,2]
[331909687,1720829438092,-1490.02,0.00013999,2]
[331909688,1720829438101,-500.0,0.00013999,2]
[331909689,1720829438110,-500.0,0.00013999,2]
[331909690,1720829438120,-500.0,0.00013999,2]
[331909691,1720829438129,-500.0,0.00013999,2]
[331909692,1720829438138,-500.0,0.00013999,2]
[331909693,1720829438147,-500.0,0.00013999,2]
[331909694,1720829438156,-500.0,0.00013999,2]
[331909695,1720829438167,-30.02782809,0.00013999,2]
[331909696,1720829438190,-469.97217191,0.00013999,2]
[331909697,1720829438199,-642.24,0.00013999,2]
[331909698,1720829438209,-80659.12701548,0.00014,2]
[331909699,1720829438220,-301.52429435,0.00014,2]
[331909700,1720829438295,-1189.17655856,0.00014,2]
[331909871,1720829440026,-1596.88006637,0.00014,2]
[331909878,1720829440081,-487443.41385843,0.00014,2]
[331909880,1720829440091,-810422.9908066,0.00014,2]
[331909882,1720829440102,-574.61696002,0.00014,2]
[331909885,1720829440114,-2317.16226982,0.00014,2]
[331909887,1720829440125,-340.78144659,0.00014,2]
[331909889,1720829440135,-636.09475393,0.00014,2]
[331909891,1720829440146,-8129.29637001,0.00014,2]
[331909902,1720829440242,-312.3160075,0.00014,2]
[331909905,1720829440253,-2371.47496843,0.00014,2]
[331909907,1720829440265,-776.11930093,0.00014,2]
[331909917,1720829440350,-175325.66195999,0.00014,2]
[331909923,1720829440404,-561.97850452,0.00014,2]
[331910214,1720829443078,-210.10223507,0.00013999,2]
[331910216,1720829443088,-816.35418937,0.00013999,2]
[331910225,1720829443140,-2484.18281618,0.00013999,2]
[331910227,1720829443151,-830.11403148,0.00013999,2]
[331910229,1720829443162,-709.17,0.00013999,2]
[331910231,1720829443173,-664.83272804,0.00013999,2]
[331910233,1720829443185,-426.494276,0.00013999,2]
[331910235,1720829443195,-14008.55085619,0.00014,2]
[331910238,1720829443210,-650.96828781,0.00014,2]
[331910240,1720829443221,-662.00221,0.00014,2]
[331910242,1720829443232,-18717.1864348,0.00014,2]
[331910245,1720829443244,-17920.90906937,0.00014,2]
[331910247,1720829443255,-22163.18622214,0.00014,2]
[331910340,1720829444149,-19757.05064113,0.00014,2]
[331910343,1720829444161,-580.38,0.00014,2]
[331910345,1720829444178,-6317.46577834,0.00014,2]
[331910348,1720829444190,-8047.36758596,0.00014,2]
[331910350,1720829444207,-23521.76724492,0.00014,2]
[331910353,1720829444219,-3292.164575,0.00014,2]
[331910551,1720829446133,-210.10223507,0.00013999,2]
[331910552,1720829446143,-3635.62690826,0.00014,2]
[331910558,1720829446188,-450.94606924,0.00014,2]
[331910560,1720829446200,-283.61473612,0.00014,2]
[331910562,1720829446211,-376.58731798,0.00014,2]
[331910564,1720829446223,-14304.51392337,0.00014,2]
[331910566,1720829446234,-16344.51668327,0.00014,2]
[331910581,1720829446392,-2313.36006971,0.00014,2]
[331910583,1720829446404,-2535.49260384,0.00014,2]
[331910586,1720829446415,-8036.765211,0.00014,2]
[331910814,1720829471748,258.05075111,0.0001134,2]
[331910815,1720829471779,191.03924889,0.0001134,2]
[331910839,1720829855689,115.86,0.00018849,30]
[331910846,1720830013583,444.99,0.00010998,2]
[331910855,1720830333305,155.12032882,0.00011199,2]
[331910858,1720830344310,155.0,0.00011199,2]
[331910864,1720830506248,155.0,0.00011199,2]
[331910868,1720830524309,235.5502268,0.00011199,2]
[331910899,1720830577748,440.17,0.00010879,2]
[331910906,1720830632169,-734.6075021,0.000118,2]
[331910907,1720830632180,-1095.19142246,0.000118,2]
[331910908,1720830632362,-451.3593011,0.000118,2]
[331910909,1720830632372,-248.6406989,0.00012842,2]
[331910910,1720830632384,-551.3593011,0.00012842,2]
[331910911,1720830632394,-250.0,0.00012856,2]
[331910912,1720830632403,-147.79971204,0.00012856,2]
[331910913,1720830632419,-26.92028796,0.00012856,2]
[331910914,1720830632428,-530.82,0.00012859,2]
[331910915,1720830632437,-69.33971211,0.00012867,2]
[331910916,1720830632449,-404.72999987,0.00012867,2]
[331910917,1720830632459,-615.25441392,0.00012867,2]
[331910918,1720830632471,-404.7199998,0.00012867,2]
[331910919,1720830632482,-382.1757733,0.00012867,2]
[331910920,1720830632491,-101.53815896,0.00012885,2]
[331910921,1720830632502,-98.46184104,0.00012885,2]
[331910922,1720830632511,-250.0,0.00012891,2]
[331910923,1720830632521,-193.56,0.00012932,2]
[331910924,1720830632531,-819.43092133,0.00013,2]
[331910925,1720830632543,-430.56907867,0.00013,2]
[331910926,1720830632552,-440.17,0.00013143,2]
[331910927,1720830632561,-150.99,0.00013261,2]
[331910928,1720830632571,-20.43864133,0.00013516,2]
[331910929,1720830632582,-134.56135867,0.00013516,2]
[331910930,1720830632591,-544.56604372,0.00013543,2]
[331910931,1720830632600,-300.0,0.00013561,2]
[331910932,1720830632609,-150.0,0.00013561,2]
[331910933,1720830632619,-8008.23248916,0.00013562,2]
[331910934,1720830632630,-255.97559429,0.00013562,2]
[331910935,1720830632641,-600.0,0.00013562,2]
[331910936,1720830632652,-3682.03172911,0.00013562,2]
[331910937,1720830632672,-767.82480552,0.00013562,2]
[331910938,1720830632683,-448.74875887,0.00013562,2]
[331910939,1720830632700,-19359.85007386,0.00013562,2]
[331910940,1720830632711,-499.6,0.00013562,2]
[331910941,1720830632722,-999.9006,0.00013562,2]
[331910942,1720830632733,-1000.3932,0.00013562,2]
[331910943,1720830632744,-544.02,0.00013562,2]
[331910955,1720830638220,-25761.50744919,0.00013562,2]
[331910956,1720830638229,-424.85,0.000136,2]
[331910957,1720830638238,-165.05,0.000136,2]
[331910958,1720830638249,-165.05,0.000136,2]
[331910959,1720830638259,-424.85,0.000136,2]
[331910960,1720830638269,-150.0,0.000136,2]
[331910961,1720830638280,-165.05,0.000136,2]
[331910962,1720830638291,-424.85,0.000136,2]
[331910963,1720830638300,-424.85,0.000136,2]
[331910964,1720830638310,-165.05,0.000136,2]
[331910965,1720830638319,-150.0,0.000136,2]
[331910966,1720830638328,-424.85,0.000136,2]
[331910967,1720830638337,-424.85,0.000136,2]
[331910968,1720830638346,-500.0,0.00013698,2]
[331910969,1720830638354,-504.16853341,0.00013698,2]
[331910970,1720830638364,-500.0,0.00013698,2]
[331910971,1720830638373,-551.92542254,0.00013698,2]
[331910972,1720830638382,-281.60610375,0.00013698,2]
[331910973,1720830638391,-250.0,0.00013699,2]
[331910974,1720830638400,-471.98,0.00013699,2]
[331910975,1720830638408,-385.10220627,0.00013699,2]
[331910976,1720830638417,-181.61,0.000137,2]
[331910977,1720830638426,-302.75,0.000137,2]
[331910978,1720830638435,-424.85,0.000137,2]
[331910979,1720830638444,-300.49,0.000137,2]
[331910980,1720830638453,-533.27,0.000137,2]
[331910981,1720830638462,-300.0,0.000137,2]
[331910982,1720830638471,-710.34,0.000137,2]
[331910983,1720830638479,-166.98,0.000137,2]
[331910984,1720830638488,-409.59,0.000137,2]
[331910985,1720830638497,-319.27,0.000137,2]
[331910986,1720830638506,-424.85,0.000137,2]
[331910987,1720830638515,-424.85,0.000137,2]
[331910988,1720830638524,-500.0,0.00013753,2]
[331910989,1720830638533,-500.0,0.00013753,2]
[331910990,1720830638542,-300.33941037,0.00013808,2]
[331910991,1720830638551,-266.12993526,0.00013808,2]
[331910992,1720830638560,-3000.0,0.0001386,2]
[331910994,1720830638569,-781.72860516,0.0001388,2]
[331910996,1720830638584,-2114.8729136,0.0001388,2]
[331910999,1720830638599,-699.33637892,0.0001388,2]
[331911001,1720830638610,-722.67910428,0.0001388,2]
[331911152,1720830640214,-347.47664097,0.00013186,2]
[331911154,1720830640223,-2441.68443579,0.0001388,2]
[331911156,1720830640233,-3882.394898,0.0001389,2]
[331911165,1720830640328,-309.12639055,0.0001389,2]
[331911167,1720830640339,-554.52844678,0.0001389,2]
[331911173,1720830640389,-763.48000001,0.0001389,2]
[331911185,1720830640516,-262.79677064,0.0001389,2]
[331911187,1720830640528,-8364.0002197,0.0001389,2]
[331911192,1720830640563,-2207.49029818,0.0001389,2]
[331911194,1720830640575,-703.9999999,0.0001389,2]
[331911196,1720830640586,-423.64789534,0.0001389,2]
[331911198,1720830640598,-1466.39000004,0.0001389,2]
[331911485,1720830643378,-930.52186501,0.00013186,2]
[331911488,1720830643392,-1470.35363997,0.00013186,2]
[331911490,1720830643404,-155.0,0.00013472,2]
[331911492,1720830643416,-377.12,0.000136,2]
[331911495,1720830643429,-2563.43781676,0.0001389,2]
[331911497,1720830643440,-178.29,0.0001389,3]
[331911499,1720830643451,-2500.0,0.000139,2]
[331911501,1720830643464,-14850.7658,0.000139,2]
[331911504,1720830643476,-209.2893539,0.000139,2]
[331911506,1720830643488,-909.503706,0.00013973,2]
[331911508,1720830643499,-15215.87192102,0.0001398,2]
[331911510,1720830643513,-1023.82317081,0.0001398,2]
[331911513,1720830643528,-805.58956756,0.0001398,2]
[331911515,1720830643541,-328.7496445,0.0001398,2]
[331911517,1720830643553,-1747.575,0.0001398,2]
[331911520,1720830643566,-294.14994472,0.0001398,2]
[331911523,1720830643584,-254.98275139,0.0001398,2]
[331911525,1720830643595,-2879.803,0.0001398,2]
[331911527,1720830643606,-427.402,0.0001398,2]
[331911529,1720830643617,-287.75,0.00013989,2]
[331911531,1720830643627,-500.0,0.00013989,2]
[331911533,1720830643638,-500.0,0.00013989,2]
[331911535,1720830643648,-619.8,0.00013989,2]
[331911537,1720830643659,-150.0,0.00013989,2]
[331911539,1720830643670,-1384.41,0.00013989,2]
[331911541,1720830643680,-205.30156874,0.00013989,2]
[331911543,1720830643690,-500.0,0.00013989,2]
[331911545,1720830643700,-500.0,0.00013989,2]
[331911547,1720830643712,-2.87803706,0.00013989,2]
[331911700,1720830645256,-497.12196294,0.00013989,2]
[331911702,1720830645264,-500.0,0.00013989,2]
[331911704,1720830645272,-206.35146291,0.00013989,2]
[331911706,1720830645282,-293.64853709,0.00013989,2]
[331911707,1720830645291,-500.0,0.00013989,2]
[331911709,1720830645299,-46.99538836,0.00013989,2]
[331911712,1720830645313,-301.616,0.00013989,2]
[331911714,1720830645326,-151.38861164,0.00013989,2]
[331911716,1720830645334,-260.90913132,0.00013989,2]
[331911718,1720830645344,-239.09086868,0.00013989,2]
[331911720,1720830645352,-320.31519733,0.00013989,2]
[331911826,1720830646326,-314.76,0.0001398,3]
[331911828,1720830646336,-179.68480267,0.00013989,2]
[331911830,1720830646346,-85.51296333,0.00013989,2]
[331911832,1720830646359,-414.48703667,0.00013989,2]
[331911834,1720830646368,-500.0,0.00013989,2]
[331911836,1720830646377,-500.0,0.00013989,2]
[331911838,1720830646387,-500.0,0.00013989,2]
[331911840,1720830646396,-500.0,0.00013989,2]
[331911842,1720830646406,-500.0,0.00013989,2]
[331911844,1720830646417,-596.1734547,0.00013989,2]
[331911846,1720830646427,-2445.05,0.00013989,2]
[331911848,1720830646438,-500.0,0.00013989,2]
[331911850,1720830646447,-364.6602356,0.00013989,2]
[331911852,1720830646458,-25492.68481151,0.0001399,3]
[331911855,1720830646471,-1002.44274149,0.0001399,3]
[331911857,1720830646483,-7403.1204677,0.0001399,3]
[331911859,1720830646496,-2250.53767768,0.0001399,3]
[331911861,1720830646509,-1462.76416002,0.0001399,3]
[331911864,1720830646522,-11173.27156439,0.0001399,3]
[331911866,1720830646534,-247.55859701,0.0001399,3]
[331911868,1720830646544,-2125.25660836,0.0001399,3]
[331911870,1720830646555,-33048.83433905,0.0001399,3]
[331911872,1720830646566,-326.1616791,0.0001399,3]
[331911874,1720830646577,-824.59977352,0.0001399,3]
[331911876,1720830646590,-264.08762226,0.0001399,3]
[331911877,1720830646606,-768.06384375,0.0001399,3]
[331911879,1720830646617,-7511.43041172,0.0001399,3]
[331911881,1720830646631,-32951.44758523,0.0001399,3]
[331911883,1720830646644,-2325.64980315,0.0001399,3]
[331911885,1720830646655,-1418.946,0.0001399,3]
[331911888,1720830646666,-1383.40857251,0.0001399,3]
[331911891,1720830646685,-322.51994525,0.0001399,3]
[331911893,1720830646697,-2497.79507697,0.0001399,3]
[331911895,1720830646710,-6000.0,0.0001399,3]
[331911897,1720830646722,-43005.23091192,0.0001399,3]
[331911899,1720830646733,-1774.86208729,0.0001399,3]
[331911901,1720830646746,-1951.40039262,0.0001399,3]
[331911904,1720830646759,-12916.53216078,0.0001399,3]
[331911906,1720830646772,-1313.87865291,0.0001399,3]
[331912124,1720830741633,2423.78360654,0.00011199,2]
[331912131,1720830798563,1000.0,0.00026457,120]
[331912135,1720831109670,1781.84804876,0.00011199,2]
[331912136,1720831122819,1290.34138626,0.00011199,2]
[331912137,1720831159055,452.43,0.00010929,2]
[331912140,1720831347885,474.3242111,0.00011199,2]
[331912152,1720831690993,447.01,0.00010811,2]
[331912184,1720831831464,-482.0,0.00012494,2]
[331912185,1720831831475,-121.50800002,0.00012595,2]
[331912186,1720831831521,-39.40000125,0.00012595,2]
[331912187,1720831831531,-640.0,0.00012735,2]